[Event "Athens of East GM-Open 2019"]
[Site "Madurai"]
[Date "2019.08.18"]
[Round "10.9"]
[White "Murali Krishnan B T"]
[Black "Khusenkhojaev, Muhammad"]
[Result "0-1"]
[ECO "D82"]
[WhiteElo "2192"]
[BlackElo "2441"]
[Annotator "NA"]
[PlyCount "144"]
[EventDate "2019.08.11"]
[EventType "swiss"]
[EventCountry "IND"]
[SourceTitle "playchess.com"]
[Source "ChessBase"]
[SourceQuality "1"]
[TimeControl "5400+30"]

1. d4 {[%emt 0:00:00]} Nf6 {[%emt 0:00:00]} 2. c4 {[%emt 0:00:46]} g6 {[%emt 0:00:00]} 3. Nc3 {[%emt 0:00:59]} d5 {[%emt 0:00:00]} 4. Bf4 {[%emt 0:00:08]} Bg7 {[%emt 0:00:00]} 5. e3 {[%emt 0:00:11]} c5 {[%emt 0:01:02]} 6. dxc5 {[%emt 0:01:03]} Qa5 {[%emt 0:00:16]} 7. Rc1 {[%emt 0:04:25]} Ne4 {[%emt 0:01:05]} 8. cxd5 {[%emt 0:00:54]} Nxc3 {[%emt 0:00:10]} 9. Qd2 {[%emt 0:00:04]} Qxa2 {[%emt 0:00:07]} 10. bxc3 {[%emt 0:00:12]} Qa5 {[%emt 0:00:09]} 11. Nf3 {[%emt 0:11:39] D82: Grünfeld: 4 Bf4} (11. Bc4 Nd7 {½-½ (60) Kramnik,V (2759)-Carlsen,M (2776) Nice 2009}) 11... Nd7 {[%emt 0:02:17]} 12. d6 {[%emt 0:05:11]} ({Better is} 12. Bc4 $14 Nxc5 13. O-O O-O 14. Be5 Bxe5 15. Nxe5 f6 16. Ra1 Qb6 17. d6+ Kg7 18. dxe7 Re8 19. Nf3 Rxe7 20. Rfb1 Qc7 21. Nd4 Ne4 22. Qd3 {½-½ (60) Kramnik,V (2759)-Carlsen,M (2776) Nice 2009}) 12... e5 $146 {[%emt 0:06:36]} ({Predecessor:} 12... e6 13. Bc4 Qxc5 14. Ba2 b6 15. O-O O-O 16. e4 Bb7 17. Rfe1 Rac8 18. Nd4 Rfe8 {0-1 (52) Santos,M (2346)-Utiyama,M Sao Paulo 2006}) 13. Bg3 {[%emt 0:03:34]} Qxc5 {[%emt 0:02:45]} 14. Be2 {[%emt 0:02:17]} O-O {[%emt 0:00:18]} 15. O-O {[%emt 0:00:06]} Nb6 {[%emt 0:04:21]} 16. Rfd1 {[%emt 0:07:07]} Bf5 {[%emt 0:01:44]} 17. Qb2 {[%emt 0:01:39]} Rfd8 {[%emt 0:02:26]} 18. Qb5 {[%emt 0:01:41]} (18. c4 $11 {keeps the balance.}) 18... Qxb5 {[%emt 0:00:07]} 19. Bxb5 {[%emt 0:00:03]} f6 {[%emt 0:00:05]} 20. Nh4 {[%emt 0:08:20]} Be6 {[%emt 0:08:03]} 21. f4 {[%emt 0:00:41]} Bb3 {[%emt 0:07:03]} 22. fxe5 $1 {[%emt 0:01:29]} Bxd1 {[%emt 0:00:18]} 23. Rxd1 {[%emt 0:00:08]} fxe5 {[%emt 0:00:44]} 24. Nf3 {[%emt 0:00:07]} a6 {[%emt 0:01:07]} 25. Be2 {[%emt 0:00:57] [#]} Rac8 $1 {[%emt 0:05:49]} 26. Nxe5 {[%emt 0:01:24]} Rxc3 {[%emt 0:00:33]} 27. Bg4 {[%emt 0:05:24] [#]} Re8 {[%emt 0:04:44]} ({Don't play} 27... Rxe3 $6 28. Be6+ Kf8 29. Rf1+ Ke8 30. Bf7+ Kf8 31. Bc4+ Ke8 32. Bf7+ Kf8 33. Bc4+ Ke8 34. Bf7+ $11) ({Black should try} 27... Bf6 $1 $17 28. Nf3 Kf8) 28. d7 {[%emt 0:02:36]} Nxd7 $1 {[%emt 0:00:10]} 29. Nxd7 {[%emt 0:00:07]} Rexe3 {[%emt 0:00:56]} 30. Bf2 {[%emt 0:06:34]} Red3 {[%emt 0:01:36]} 31. Rb1 {[%emt 0:07:08]} Rc2 {[%emt 0:07:48]} 32. Nc5 {[%emt 0:03:50]} Rdd2 {[%emt 0:04:26]} 33. Ne4 {[%emt 0:01:17] [#]} Rxf2 $1 {[%emt 0:00:54]} 34. Nxf2 {[%emt 0:01:04]} Bd4 {[%emt 0:00:06]} 35. Rf1 {[%emt 0:01:27]} b5 {[%emt 0:06:15]} (35... Kg7 $17 36. g3 a5) 36. g3 {[%emt 0:00:12]} a5 {[%emt 0:01:33]} 37. Kg2 {[%emt 0:04:25]} a4 {[%emt 0:00:21]} 38. Kf3 {[%emt 0:00:09]} a3 {[%emt 0:00:58]} 39. Nd3 {[%emt 0:00:35]} a2 {[%emt 0:02:59]} 40. Be6+ {[%emt 0:04:05]} Kg7 {[%emt 0:00:06]} 41. Bxa2 {[%emt 0:00:06]} Rxa2 {[%emt 0:00:08]} 42. Rb1 {[%emt 0:00:04]} Ra5 $17 {[%emt 0:01:58]} 43. Rb3 {[%emt 0:04:13]} Bf6 {[%emt 0:00:25]} 44. Nb4 {[%emt 0:05:51]} Be7 {[%emt 0:00:16]} 45. Nc6 {[%emt 0:01:15]} Ra3 {[%emt 0:00:38]} 46. Rxa3 {[%emt 0:00:05]} Bxa3 {[%emt 0:00:05]} 47. Nd4 {[%emt 0:00:02]} b4 {[%emt 0:00:06]} 48. h3 {[%emt 0:00:20]} Bb2 {[%emt 0:00:25]} 49. Nb3 {[%emt 0:01:12]} Kf6 {[%emt 0:00:18]} 50. Ke4 {[%emt 0:00:15]} Bc3 {[%emt 0:02:05]} 51. g4 {[%emt 0:00:10]} Be1 {[%emt 0:00:54]} 52. Nd4 {[%emt 0:00:13]} Bf2 {[%emt 0:02:05]} 53. Nb3 {[%emt 0:00:04]} Ke6 {[%emt 0:00:20]} 54. Nc1 {[%emt 0:00:37]} Kd6 {[%emt 0:00:31]} 55. Nb3 {[%emt 0:01:28]} Bh4 {[%emt 0:00:09]} 56. Kd4 {[%emt 0:04:33]} Be7 {[%emt 0:00:07]} 57. Nd2 {[%emt 0:00:24]} Bf6+ {[%emt 0:03:55]} 58. Ke4 {[%emt 0:02:47]} Kc5 {[%emt 0:00:19]} 59. Kd3 {[%emt 0:00:37]} Kd5 {[%emt 0:00:06]} 60. Nb3 {[%emt 0:00:15]} Ke5 {[%emt 0:01:06]} 61. Nd4 {[%emt 0:01:16]} Kf4 {[%emt 0:00:54]} 62. Ne6+ {[%emt 0:00:30]} Kg3 {[%emt 0:00:09]} 63. Nf8 {[%emt 0:00:09]} Kxh3 {[%emt 0:00:25]} 64. Nxh7 {[%emt 0:00:05]} Be7 {[%emt 0:00:18]} 65. g5 {[%emt 0:00:05]} Kg4 {[%emt 0:24:51]} 66. Nf6+ {[%emt 0:00:07]} Kxg5 {[%emt 0:00:00]} 67. Nd5 {[%emt 0:00:49]} Bd6 {[%emt 0:00:00]} 68. Kc4 {[%emt 0:01:23]} Kf5 {[%emt 0:00:00]} 69. Kd3 {[%emt 0:00:45]} g5 {[%emt 0:00:00]} 70. Ne3+ {[%emt 0:00:48]} Kf4 {[%emt 0:00:00]} 71. Nc4 {[%emt 0:00:06]} Be5 {[%emt 0:00:00]} 72. Nd2 {[%emt 0:00:51]} Bc3 {[%emt 0:03:30] Kd4 Ke5+} 0-1

[Event "Athens of East GM-Open 2019"]
[Site "Madurai"]
[Date "2019.08.18"]
[Round "10.10"]
[White "Karthikeyan, P.."]
[Black "Lakshmi Narayanan M V"]
[Result "1/2-1/2"]
[ECO "E17"]
[WhiteElo "2415"]
[BlackElo "2166"]
[Annotator "NA"]
[PlyCount "96"]
[EventDate "2019.08.11"]
[EventType "swiss"]
[EventCountry "IND"]
[SourceTitle "playchess.com"]
[Source "ChessBase"]
[SourceQuality "1"]
[TimeControl "5400+30"]

{[%evp 15,83,28,32767,32767,32767,32767,32767,32767,32767,32767,42,6,7,8,20,14,19,20,23,0,14,0,7,9,32767,32767,32767,10,16,32767,9,14,24,32767,21,32767,22,18,19,15,22,5,5,0,16,8,8,0,7,0,0,0,0,-15,-11,-8,-13,0,0,0,0,0,0,0,32767,32767,0,0,0,0]} 1. Nf3 {[%emt 0:00:00]} Nf6 {[%emt 0:00:00]} 2. c4 {[%emt 0:00:00]} e6 {[%emt 0:00:04]} 3. g3 {[%emt 0:00:03]} b6 {[%emt 0:00:14]} 4. Bg2 {[%emt 0:00:06]} Bb7 {[%emt 0:00:12]} 5. O-O {[%emt 0:00:06]} Be7 {[%emt 0:00:11]} 6. d4 {[%emt 0:00:06]} O-O {[%emt 0:00:10]} 7. Re1 {[%emt 0:00:05]} d6 {[%emt 0:01:16]} 8. Qc2 {[%emt 0:02:03] E17: Queen's Indian: 4 g3 Bb7 5 Bg2 Be7} (8. Nc3 c5 9. d5 exd5 10. cxd5 b5 11. Nxb5 Bxd5 12. Bf4 Qb6 13. Nxd6 Bxd6 14. Bxd6 Qxd6 15. e4 Nxe4 16. Rxe4 {1-0 (28) Tkachiev,V (2661)-Fedorchuk,S (2645) Benidorm 2007}) 8... c5 {[%emt 0:03:11]} 9. e4 {[%emt 0:01:46]} cxd4 {[%emt 0:02:21]} 10. Nxd4 {[%emt 0:00:03]} Qc8 {[%emt 0:01:45]} 11. b3 {[%emt 0:01:22]} Nc6 {[%emt 0:02:52]} 12. Bb2 {[%emt 0:03:46]} a6 $146 {[%emt 0:09:51]} ({Predecessor:} 12... Nxd4 13. Bxd4 e5 14. Bb2 b5 15. Nd2 Qc5 {0-1 (59) Jovanovic,Z (2336)-Illijin,N (2256) Obrenovac 2008}) 13. Nd2 {[%emt 0:01:16]} Nxd4 {[%emt 0:03:55]} 14. Bxd4 {[%emt 0:00:09]} Qc7 {[%emt 0:01:32]} 15. e5 {[%emt 0:03:02]} dxe5 {[%emt 0:02:11]} 16. Bxe5 {[%emt 0:00:07]} Qc8 {[%emt 0:02:01]} 17. Nf3 {[%emt 0:00:33]} h6 {[%emt 0:04:48]} 18. Rad1 {[%emt 0:06:48]} Bc6 {[%emt 0:03:08]} 19. Bd6 {[%emt 0:15:19]} Qb7 {[%emt 0:05:22]} 20. Qe2 {[%emt 0:01:28]} Rfd8 {[%emt 0:02:13]} 21. Bxe7 {[%emt 0:01:34]} Qxe7 {[%emt 0:00:14]} 22. Ne5 {[%emt 0:00:33]} Bxg2 {[%emt 0:01:31]} 23. Kxg2 {[%emt 0:00:03]} Qb7+ {[%emt 0:01:50]} 24. Qf3 {[%emt 0:00:15]} Qxf3+ {[%emt 0:00:53]} 25. Kxf3 {[%emt 0:00:05]} Kf8 {[%emt 0:01:17]} 26. h4 {[%emt 0:01:42]} h5 {[%emt 0:03:40]} 27. Ke3 {[%emt 0:01:22]} Rac8 {[%emt 0:02:33]} 28. f3 {[%emt 0:01:11]} Ke8 {[%emt 0:02:24]} 29. g4 {[%emt 0:05:29]} hxg4 {[%emt 0:03:00]} 30. fxg4 {[%emt 0:01:00]} Nd7 {[%emt 0:00:59]} 31. Nf3 {[%emt 0:04:49]} Ke7 {[%emt 0:02:24]} 32. h5 {[%emt 0:06:52]} b5 {[%emt 0:01:09]} 33. cxb5 {[%emt 0:09:55]} axb5 {[%emt 0:02:32]} 34. Rc1 {[%emt 0:01:34]} Nf6 {[%emt 0:02:00]} 35. Ne5 {[%emt 0:03:37]} Nd5+ {[%emt 0:01:26]} 36. Kf3 {[%emt 0:00:06]} Rxc1 {[%emt 0:01:07]} 37. Rxc1 {[%emt 0:00:37]} Ra8 {[%emt 0:00:55]} 38. Rc2 {[%emt 0:04:20]} f6 {[%emt 0:02:28]} 39. Nc6+ {[%emt 0:01:31]} Kd7 {[%emt 0:03:22]} 40. Nd4 {[%emt 0:01:08]} b4 {[%emt 0:00:54]} 41. Ne2 {[%emt 0:02:33]} Kd6 {[%emt 0:03:00]} 42. Ke4 $11 {[%emt 0:01:24]} Ra5 {[%emt 0:03:38]} 43. Kd4 {[%emt 0:00:54]} Ra8 {[%emt 0:01:45]} 44. Ng3 {[%emt 0:03:27]} Ke7 {[%emt 0:03:26]} 45. Ne2 {[%emt 0:01:33]} Kd6 {[%emt 0:00:17]} 46. Ng3 {[%emt 0:02:06]} Ke7 {[%emt 0:00:19]} 47. Ne2 {[%emt 0:00:11]} Kd6 {[%emt 0:17:10]} 48. Ke4 {[%emt 0:16:01] Ke5+ Kd4+ Kd6 Ng3} Ke7 {[%emt 0:00:30] Ne2 g6 hxg6 Rg8} 1/2-1/2

[Event "Athens of East GM-Open 2019"]
[Site "Madurai"]
[Date "2019.08.18"]
[Round "10.11"]
[White "Saravana, Krishnan P."]
[Black "Niraj, Saripalli"]
[Result "1-0"]
[ECO "C77"]
[WhiteElo "2277"]
[BlackElo "2150"]
[Annotator "NA"]
[PlyCount "105"]
[EventDate "2019.08.11"]
[EventType "swiss"]
[EventCountry "IND"]
[SourceTitle "playchess.com"]
[Source "ChessBase"]
[SourceQuality "1"]
[TimeControl "5400+30"]

1. e4 {[%emt 0:02:58]} e5 {[%emt 0:00:00]} 2. Nf3 {[%emt 0:02:22]} Nc6 {[%emt 0:00:00]} 3. Bb5 {[%emt 0:00:14]} a6 {[%emt 0:02:01]} 4. Ba4 {[%emt 0:00:09]} Nf6 {[%emt 0:02:36]} 5. Bxc6 {[%emt 0:00:58]} dxc6 {[%emt 0:00:16]} 6. d3 {[%emt 0:00:05]} Bd6 {[%emt 0:02:38]} 7. Nbd2 {[%emt 0:00:14]} Nd7 {[%emt 0:05:24]} 8. b3 {[%emt 0:00:25] C77: Ruy Lopez: 3...a6 4 Ba4 Nf6, unusual lines} Nf8 {[%emt 0:04:50]} 9. Bb2 {[%emt 0:00:38]} f6 $146 {[%emt 0:00:54]} ({Predecessor:} 9... Ng6 10. Nc4 f6 11. Qd2 Bg4 12. Ng1 h5 13. f3 Be6 14. Ne3 a5 15. Ne2 a4 {½-½ (49) Bartel,M (2413)-Mikhalevski,V (2531) Moscow 2002}) 10. Nh4 {[%emt 0:07:33]} Be6 {[%emt 0:02:14]} 11. Nf5 {[%emt 0:09:47]} Qd7 {[%emt 0:01:06]} 12. Qf3 {[%emt 0:00:13]} Ng6 {[%emt 0:07:00]} 13. Nc4 {[%emt 0:16:29]} Bxf5 {[%emt 0:09:58]} 14. exf5 {[%emt 0:01:08]} Nf4 {[%emt 0:01:49]} 15. g3 {[%emt 0:09:32]} Bb4+ {[%emt 0:03:38]} 16. Kf1 {[%emt 0:00:33]} Qd5 {[%emt 0:02:08]} 17. Qe4 {[%emt 0:00:23]} Nh3 $1 {[%emt 0:03:17]} 18. Ke2 {[%emt 0:03:02]} Ng5 {[%emt 0:07:32]} 19. Qxd5 {[%emt 0:00:27]} cxd5 {[%emt 0:00:02]} 20. Ne3 {[%emt 0:00:34]} O-O-O {[%emt 0:11:53]} 21. c4 {[%emt 0:02:37]} dxc4 {[%emt 0:04:01]} 22. bxc4 {[%emt 0:03:23]} c6 {[%emt 0:02:01]} 23. h4 {[%emt 0:03:52]} Ne4 {[%emt 0:02:47]} 24. Rab1 {[%emt 0:09:12]} Nc5 {[%emt 0:04:09]} 25. Ba1 $15 {[%emt 0:12:06]} a5 {[%emt 0:10:34]} 26. Rhd1 {[%emt 0:01:09]} Na4 {[%emt 0:03:27]} 27. Rbc1 {[%emt 0:01:33]} Rd7 {[%emt 0:01:24]} 28. f4 {[%emt 0:05:31]} exf4 {[%emt 0:01:32]} 29. gxf4 {[%emt 0:00:01]} Re8 {[%emt 0:00:47]} 30. d4 {[%emt 0:00:40]} Re4 {[%emt 0:00:30]} 31. Kf3 {[%emt 0:00:54]} Rde7 {[%emt 0:00:12]} 32. Rd3 {[%emt 0:03:11]} Bd2 {[%emt 0:00:28]} 33. Rxd2 {[%emt 0:00:05]} Rxe3+ {[%emt 0:00:02]} 34. Kg2 {[%emt 0:00:59]} Re2+ {[%emt 0:00:54]} 35. Rxe2 {[%emt 0:00:06]} Rxe2+ {[%emt 0:00:01]} 36. Kf3 {[%emt 0:00:10]} Rxa2 {[%emt 0:00:15]} 37. d5 {[%emt 0:00:23]} c5 {[%emt 0:01:04]} 38. Rb1 {[%emt 0:00:45]} Kc7 {[%emt 0:00:57]} 39. Rg1 {[%emt 0:00:16]} Kd6 {[%emt 0:00:46]} 40. Ke4 {[%emt 0:00:13]} Nb6 {[%emt 0:00:37]} 41. Be5+ {[%emt 0:00:12]} fxe5 {[%emt 0:00:29]} 42. fxe5+ {[%emt 0:00:02]} Ke7 {[%emt 0:01:19]} 43. Rxg7+ {[%emt 0:00:11]} Ke8 {[%emt 0:00:39]} 44. f6 {[%emt 0:02:27]} Re2+ {[%emt 0:01:16]} 45. Kf4 {[%emt 0:00:22]} Nxc4 {[%emt 0:00:43]} 46. Re7+ {[%emt 0:01:42]} Kf8 {[%emt 0:00:26]} 47. d6 {[%emt 0:00:43]} Nxd6 {[%emt 0:00:41]} 48. exd6 {[%emt 0:01:21]} Rxe7 {[%emt 0:00:08]} 49. dxe7+ {[%emt 0:00:27]} Ke8 {[%emt 0:00:05]} 50. Kf5 {[%emt 0:00:28]} Kd7 {[%emt 0:00:09]} 51. Kg5 {[%emt 0:00:12]} a4 {[%emt 0:01:51]} 52. Kh6 {[%emt 0:00:13]} a3 {[%emt 0:00:06]} 53. f7 {[%emt 0:00:09]} 1-0

[Event "Athens of East GM-Open 2019"]
[Site "Madurai"]
[Date "2019.08.18"]
[Round "10.12"]
[White "Sahoo, Utkal Ranjan"]
[Black "Surendran N"]
[Result "1-0"]
[ECO "B51"]
[WhiteElo "2278"]
[BlackElo "2152"]
[Annotator "ChessBase"]
[PlyCount "51"]
[EventDate "2019.08.11"]
[EventType "swiss"]
[EventCountry "IND"]
[SourceTitle "playchess.com"]
[Source "ChessBase"]
[SourceQuality "1"]
[TimeControl "5400+30"]

1. e4 {[%emt 0:00:00]} c5 {[%emt 0:00:00]} 2. Nf3 {[%emt 0:00:00]} d6 {[%emt 0:00:00]} 3. Bb5+ {[%emt 0:00:00]} Nd7 {[%emt 0:00:00]} 4. d4 {[%emt 0:00:03]} cxd4 {[%emt 0:00:00]} 5. Qxd4 {[%emt 0:00:07]} a6 {[%emt 0:00:00]} 6. Bxd7+ {[%emt 0:00:05]} Bxd7 {[%emt 0:00:16]} 7. c4 {[%emt 0:00:08]} e5 {[%emt 0:00:14]} 8. Qd3 {[%emt 0:00:29]} h6 {[%emt 0:00:04]} 9. Nc3 {[%emt 0:00:40]} Nf6 {[%emt 0:00:02]} 10. O-O {[%emt 0:00:19]} Be6 {[%emt 0:10:53]} 11. b3 {[%emt 0:01:39]} Qc7 {[%emt 0:00:56]} 12. Ne1 {[%emt 0:07:47]} Rc8 {[%emt 0:08:19]} 13. Bd2 {[%emt 0:00:43]} Be7 {[%emt 0:00:18]} 14. Nc2 {[%emt 0:04:08]} O-O {[%emt 0:02:10]} 15. Ne3 {[%emt 0:01:22]} Qc6 {[%emt 0:02:34]} 16. Rac1 {[%emt 0:02:32]} Bd8 {[%emt 0:03:38]} 17. Ncd5 {[%emt 0:05:21]} Re8 {[%emt 0:15:12]} 18. Rc2 {[%emt 0:16:39]} g6 {[%emt 0:14:05]} 19. Bb4 {[%emt 0:04:16]} Be7 {[%emt 0:24:41]} 20. Nxf6+ {[%emt 0:03:59]} Bxf6 {[%emt 0:00:03]} 21. Bxd6 {[%emt 0:01:25]} Red8 {[%emt 0:00:37]} 22. c5 {[%emt 0:00:38]} Be7 {[%emt 0:01:23]} 23. Rd1 {[%emt 0:01:26]} Rd7 {[%emt 0:03:55]} 24. h3 {[%emt 0:07:24]} Rcd8 {[%emt 0:01:07]} 25. Nd5 {[%emt 0:03:46]} Kh7 {[%emt 0:11:13]} 26. Bxe7 {[%emt 0:01:58]} 1-0

[Event "Athens of East GM-Open 2019"]
[Site "Madurai"]
[Date "2019.08.18"]
[Round "10.13"]
[White "Nikhil Magizhnan"]
[Black "Aaryan Varshney"]
[Result "1/2-1/2"]
[ECO "B22"]
[WhiteElo "2164"]
[BlackElo "2272"]
[Annotator "ChessBase"]
[PlyCount "123"]
[EventDate "2019.08.11"]
[EventType "swiss"]
[EventCountry "IND"]
[SourceTitle "playchess.com"]
[Source "ChessBase"]
[SourceQuality "1"]
[TimeControl "5400+30"]

1. e4 {[%emt 0:01:48]} c5 {[%emt 0:00:00]} 2. c3 {[%emt 0:00:11]} d5 {[%emt 0:00:00]} 3. exd5 {[%emt 0:00:05]} Qxd5 {[%emt 0:00:00]} 4. d4 {[%emt 0:00:08]} Nf6 {[%emt 0:00:10]} 5. Nf3 {[%emt 0:00:07]} e6 {[%emt 0:00:20]} 6. Na3 {[%emt 0:00:50]} a6 {[%emt 0:00:15]} 7. Nc4 {[%emt 0:00:36]} Nbd7 {[%emt 0:00:08]} 8. Be2 {[%emt 0:00:11]} cxd4 {[%emt 0:00:33]} 9. cxd4 {[%emt 0:02:33]} b5 {[%emt 0:02:47]} 10. Ne3 {[%emt 0:01:35]} Bb4+ {[%emt 0:00:23]} 11. Bd2 {[%emt 0:01:25]} Qd6 {[%emt 0:00:59]} 12. O-O {[%emt 0:01:11]} Bxd2 {[%emt 0:00:43]} 13. Qxd2 {[%emt 0:00:16]} O-O {[%emt 0:01:39]} 14. Ng5 {[%emt 0:13:36]} Bb7 {[%emt 0:09:44]} 15. Bf3 {[%emt 0:01:07]} Bxf3 {[%emt 0:05:01]} 16. Nxf3 {[%emt 0:00:07]} Rac8 {[%emt 0:00:18]} 17. Rac1 {[%emt 0:00:56]} h6 {[%emt 0:00:30]} 18. h3 {[%emt 0:00:21]} Rfd8 {[%emt 0:00:23]} 19. Rxc8 {[%emt 0:00:22]} Rxc8 {[%emt 0:00:07]} 20. Rc1 {[%emt 0:00:22]} Rc7 {[%emt 0:01:07]} 21. Rc2 {[%emt 0:03:12]} Ne8 {[%emt 0:02:18]} 22. Qe2 {[%emt 0:04:41]} Rxc2 {[%emt 0:00:15]} 23. Qxc2 {[%emt 0:00:12]} Qc7 {[%emt 0:00:17]} 24. Qxc7 {[%emt 0:09:29]} Nxc7 {[%emt 0:00:02]} 25. Ne5 {[%emt 0:00:46]} Nb6 {[%emt 0:00:52]} 26. Kf1 {[%emt 0:00:39]} f6 {[%emt 0:01:03]} 27. Nd3 {[%emt 0:00:15]} Kf7 {[%emt 0:00:39]} 28. Ke2 {[%emt 0:00:12]} Ke7 {[%emt 0:00:24]} 29. g3 {[%emt 0:00:43]} a5 {[%emt 0:03:11]} 30. Nc5 {[%emt 0:01:44]} a4 {[%emt 0:00:30]} 31. b3 {[%emt 0:00:23]} axb3 {[%emt 0:00:08]} 32. axb3 {[%emt 0:00:13]} Ncd5 {[%emt 0:00:35]} 33. Nxd5+ {[%emt 0:01:10]} Nxd5 {[%emt 0:00:13]} 34. Kd3 {[%emt 0:00:15]} Nb4+ {[%emt 0:00:51]} 35. Kc3 {[%emt 0:00:18]} Nd5+ {[%emt 0:01:07]} 36. Kd3 {[%emt 0:00:28]} f5 {[%emt 0:02:16]} 37. h4 {[%emt 0:01:52]} g5 {[%emt 0:00:08]} 38. hxg5 {[%emt 0:00:06]} hxg5 {[%emt 0:00:06]} 39. Ke2 {[%emt 0:00:28]} g4 {[%emt 0:00:53]} 40. f3 {[%emt 0:03:33]} gxf3+ {[%emt 0:01:03]} 41. Kxf3 {[%emt 0:00:15]} Kd6 {[%emt 0:00:17]} 42. g4 {[%emt 0:01:29]} fxg4+ {[%emt 0:00:11]} 43. Kxg4 {[%emt 0:00:14]} Nc3 {[%emt 0:00:43]} 44. Kf3 {[%emt 0:11:16]} Kd5 {[%emt 0:01:25]} 45. b4 {[%emt 0:00:38]} Na2 {[%emt 0:00:47]} 46. Na6 {[%emt 0:00:28]} Kc4 {[%emt 0:01:47]} 47. Nc7 {[%emt 0:03:21]} Nxb4 {[%emt 0:00:12]} 48. Nxe6 {[%emt 0:02:42]} Nd5 {[%emt 0:00:54]} 49. Ke4 {[%emt 0:02:53]} b4 {[%emt 0:00:30]} 50. Nc5 {[%emt 0:00:18]} Nc3+ {[%emt 0:00:52]} 51. Ke3 {[%emt 0:00:28]} Nb5 {[%emt 0:00:16]} 52. Na4 {[%emt 0:06:54]} b3 {[%emt 0:03:38]} 53. d5 {[%emt 0:02:00]} Kb4 {[%emt 0:00:48]} 54. Nb2 {[%emt 0:00:36]} Kc3 {[%emt 0:00:56]} 55. Na4+ {[%emt 0:00:46]} Kc2 {[%emt 0:00:11]} 56. Kf4 {[%emt 0:02:07]} Nd6 {[%emt 0:03:20]} 57. Ke5 {[%emt 0:01:07]} Nc4+ {[%emt 0:00:10]} 58. Ke6 {[%emt 0:01:01]} Kc1 {[%emt 0:00:47]} 59. d6 {[%emt 0:00:55]} Nxd6 {[%emt 0:00:31]} 60. Kxd6 {[%emt 0:01:12]} b2 {[%emt 0:00:01]} 61. Nxb2 {[%emt 0:00:34]} Kxb2 {[%emt 0:00:01]} 62. Kd5 {[%emt 0:21:20]} 1/2-1/2

[Event "Athens of East GM-Open 2019"]
[Site "Madurai"]
[Date "2019.08.18"]
[Round "10.14"]
[White "Anilkumar, O.T."]
[Black "Nayak Rajesh"]
[Result "0-1"]
[ECO "B23"]
[WhiteElo "2023"]
[BlackElo "2250"]
[Annotator "NA"]
[PlyCount "112"]
[EventDate "2019.08.11"]
[EventType "swiss"]
[EventCountry "IND"]
[SourceTitle "playchess.com"]
[Source "ChessBase"]
[SourceQuality "1"]
[TimeControl "5400+30"]

1. e4 {[%emt 0:00:00]} c5 {[%emt 0:00:19]} 2. Nc3 {[%emt 0:00:00]} a6 {[%emt 0:02:19]} 3. a4 {[%emt 0:00:05]} e6 {[%emt 0:00:48]} 4. g3 {[%emt 0:00:05]} Nc6 {[%emt 0:00:10]} 5. Bg2 {[%emt 0:00:02]} Nf6 {[%emt 0:00:22]} 6. Nh3 {[%emt 0:00:36]} Be7 {[%emt 0:04:29]} 7. O-O {[%emt 0:00:09]} Qc7 {[%emt 0:00:47]} 8. d3 {[%emt 0:00:04]} O-O {[%emt 0:08:38]} 9. f4 {[%emt 0:02:27]} d6 {[%emt 0:01:17]} 10. g4 {[%emt 0:00:21]} Re8 {[%emt 0:09:32]} 11. g5 {[%emt 0:04:49]} Nd7 {[%emt 0:00:03]} 12. Ne2 {[%emt 0:00:48]} Nf8 {[%emt 0:01:09]} 13. Ng3 {[%emt 0:01:06]} d5 {[%emt 0:07:19]} 14. e5 $2 {[%emt 0:00:53]} (14. f5 $16) 14... g6 $2 {[%emt 0:00:32]} (14... Ng6 $15 {keeps the upper hand.}) 15. Nf2 {[%emt 0:00:05]} Nd4 {[%emt 0:08:18]} 16. Ng4 {[%emt 0:02:31]} Rd8 {[%emt 0:01:44]} 17. Nh6+ {[%emt 0:07:13]} Kg7 {[%emt 0:00:15]} 18. Rf2 {[%emt 0:02:48]} Nf5 {[%emt 0:01:38]} 19. Ng4 {[%emt 0:04:08]} b6 {[%emt 0:03:45]} 20. Bd2 {[%emt 0:05:30]} Bb7 {[%emt 0:00:15]} 21. Qe1 {[%emt 0:09:26]} Rac8 {[%emt 0:06:27]} 22. c3 {[%emt 0:02:47]} b5 {[%emt 0:02:17]} 23. b3 {[%emt 0:03:10]} c4 {[%emt 0:04:27]} 24. axb5 {[%emt 0:02:36]} axb5 {[%emt 0:35:10]} 25. bxc4 {[%emt 0:00:03]} bxc4 {[%emt 0:00:00]} 26. d4 {[%emt 0:00:25]} Ra8 {[%emt 0:00:00]} 27. Nf6 {[%emt 0:05:15]} Ra5 {[%emt 0:00:00]} 28. Nxf5+ {[%emt 0:01:25]} exf5 {[%emt 0:00:00]} 29. Be3 {[%emt 0:00:02]} Rda8 {[%emt 0:00:00]} 30. Rxa5 {[%emt 0:00:04]} Qxa5 {[%emt 0:00:00]} 31. Rb2 {[%emt 0:01:35]} Bc6 {[%emt 0:00:00]} 32. Bd2 {[%emt 0:01:52]} Bd8 {[%emt 0:00:00]} 33. Bf3 {[%emt 0:01:29]} Ne6 $14 {[%emt 0:00:00]} 34. Kg2 {[%emt 0:01:13]} Qa3 {[%emt 0:00:00]} 35. Qb1 {[%emt 0:22:40]} Ra5 {[%emt 0:00:00]} 36. Kg3 {[%emt 0:00:40]} Qe7 {[%emt 0:00:00]} 37. Qh1 {[%emt 0:04:36]} Qa3 {[%emt 0:00:00]} 38. Rb8 {[%emt 0:04:56]} Qa2 {[%emt 0:00:00]} 39. Qc1 {[%emt 0:03:08]} Ra8 {[%emt 0:03:07]} 40. Rb2 {[%emt 0:01:52]} Qa3 {[%emt 0:00:39]} 41. Qb1 {[%emt 0:01:10]} Ra5 {[%emt 0:00:30]} 42. Rb8 {[%emt 0:00:07]} Qe7 {[%emt 0:01:14]} 43. Qh1 {[%emt 0:02:28]} Qa7 {[%emt 0:00:27]} 44. Rb2 {[%emt 0:00:42]} Ra1 {[%emt 0:01:00]} 45. Rb1 {[%emt 0:00:45]} Ra2 {[%emt 0:00:16]} 46. Be3 {[%emt 0:01:51]} Qa5 {[%emt 0:00:36]} 47. Qc1 {[%emt 0:00:25]} Be7 {[%emt 0:00:45]} 48. Rb2 {[%emt 0:00:06]} Ra1 {[%emt 0:00:09]} 49. Rb1 {[%emt 0:00:11]} Rxb1 {[%emt 0:00:17]} 50. Qxb1 {[%emt 0:00:11]} Qxc3 {[%emt 0:00:02]} 51. Qc1 {[%emt 0:01:18]} Qxc1 {[%emt 0:00:09]} 52. Bxc1 {[%emt 0:00:17]} Nxd4 {[%emt 0:00:01]} 53. Bb2 {[%emt 0:00:10]} Nxf3 {[%emt 0:00:16]} 54. Kxf3 {[%emt 0:00:07]} d4+ {[%emt 0:00:02]} 55. Ke2 {[%emt 0:00:55]} c3 {[%emt 0:00:09]} 56. Bc1 {[%emt 0:00:27]} Bb5+ {[%emt 0:00:13]} 0-1